bitfinex-derivatives/quotes_SOLF0:USTF0_20241227
["timestamp","ask_amount","ask_price","bid_price","bid_amount"]
[1735295243564,8.47983233,190.48,190.44,4.2375]
[1735295243969,11.10753233,190.5,190.44,1.6091]
[1735295244173,11.10753233,190.5,190.45,2.6283]
[1735295244876,11.10753233,190.5,190.44,1.6091]
[1735295244877,8.47983233,190.5,190.46,2.6282]
[1735295245869,3.52,190.54,190.48,2.6279]
[1735295246072,8.47983233,190.53,190.48,2.6279]
[1735295246276,13.24563589,190.55,190.44,1.6091]
[1735295247375,2.6271,190.54,190.44,1.6091]
[1735295247972,2.6271,190.54,190.48,2.6278]
[1735295248678,2.6267,190.57,190.47,3.52]
[1735295248980,13.24563589,190.5,190.37,57.38448751]
[1735295249177,13.24563589,190.47,190.38,24.90064389]
[1735295249578,15.87363589,190.48,190.41,2.6289]
[1735295249777,13.24563589,190.48,190.41,2.6289]
[1735295250182,2.6285,190.44,190.38,3.2941]
[1735295251086,15.87393589,190.45,190.38,5.9234]
[1735295251577,2.6286,190.44,190.38,3.2941]
[1735295252374,13.24563589,190.45,190.33,1.85733104]
[1735295252676,2.6289,190.41,190.35,2.6297]
[1735295253076,13.24563589,190.36,190.21,380.12912415]
[1735295253275,3.52,190.39,190.26,21.60654389]
[1735295253583,13.24563589,190.35,190.25,21.60654389]
[1735295253973,15.87543589,190.35,190.25,24.23754389]
[1735295254174,13.24563589,190.35,190.25,21.60654389]
[1735295254584,13.24563589,190.35,190.23,4.817]
[1735295254778,13.24563589,190.35,190.28,2.6307]
[1735295254982,13.24563589,190.35,190.23,4.817]
[1735295255482,13.24563589,190.35,190.26,2.6309]
[1735295255677,13.24563589,190.35,190.23,4.817]
[1735295256281,13.24563589,190.35,190.26,2.6309]
[1735295256484,13.24563589,190.35,190.23,4.817]
[1735295257485,13.24563589,190.35,190.28,2.6306]
[1735295258085,13.24563589,190.35,190.23,4.817]
[1735295258380,13.24563589,190.32,190.1,36.19381165]
[1735295258586,13.24563589,190.25,190.12,13.24563589]
[1735295258796,13.24563589,190.25,190.13,0.96693633]
[1735295259087,13.24563589,190.25,190.12,13.24563589]
[1735295259789,15.87673589,190.25,190.12,13.24563589]
[1735295260283,15.87723589,190.22,190.13,2.6327]
[1735295260883,13.24563589,190.22,190.11,6.663]
[1735295261783,13.24563589,190.22,190.11,3.143]
[1735295262283,2.6317,190.21,190.13,2.6327]
[1735295263592,15.87713589,190.22,190.14,2.6326]
[1735295263791,13.24563589,190.19,190.14,2.6326]
[1735295264094,13.24563589,190.15,189.97,13.24563589]
[1735295264391,13.24563589,190.12,190.01,1.5567]
[1735295264587,16.76563589,190.12,190.01,1.5567]
[1735295264985,13.24563589,190.12,190.01,1.5567]
[1735295265184,13.24563589,190.12,189.98,3.3154]
[1735295265386,13.24563589,190.09,189.98,3.3154]
[1735295265588,15.87893589,190.09,189.98,3.3154]
[1735295265789,3.52,190.1,189.98,16.56103589]
[1735295266086,13.24563589,190.12,189.99,3.52]
[1735295266292,13.24563589,190.12,190.04,2.634]
[1735295266690,13.24563589,190.12,189.99,3.52]
[1735295266893,13.24563589,190.12,190.04,2.6339]
[1735295268491,15.87863589,190.12,190.04,2.6339]
[1735295268694,13.24563589,190.09,189.98,3.3154]
[1735295269892,13.24563589,190.12,189.99,13.24563589]
[1735295270992,13.24563589,190.12,190.0,0.9679031]
[1735295271185,13.24563589,190.12,190.06,2.6337]
[1735295271390,13.24563589,190.12,190.01,3.52]
[1735295271892,13.24563589,190.09,190.01,3.52]
[1735295272094,13.24563589,190.09,190.04,2.634]
[1735295273495,15.87903589,190.09,190.01,2.6343]
[1735295273796,13.24563589,190.09,189.99,3.52]
[1735295273988,15.87893589,190.09,189.99,3.52]
[1735295274190,13.24563589,190.08,189.99,3.52]
[1735295274700,13.24563589,190.08,190.02,2.6341]
[1735295274990,13.24563589,190.08,189.99,3.52]
[1735295275187,13.24563589,190.08,189.98,1.6728]
[1735295275391,13.24563589,190.05,189.98,1.6728]
[1735295275590,13.24563589,190.02,189.95,1.5402]
[1735295275997,13.24563589,190.02,189.92,3.52]
[1735295276190,13.24563589,190.02,189.98,2.6348]
[1735295276492,13.24563589,190.02,189.92,3.52]
[1735295276795,13.24563589,189.96,189.79,54.68]
[1735295276995,13.24563589,190.08,189.81,17.94933589]
[1735295276996,13.24563589,189.93,189.81,17.94933589]
[1735295277186,13.24563589,189.93,189.86,2.6365]
[1735295277694,13.24563589,189.9,189.84,2.6367]
[1735295277888,13.24563589,190.0,189.74,13.24563589]
[1735295277889,13.24563589,189.87,189.74,13.24563589]
[1735295278091,13.24563589,189.87,189.79,0.96889983]
[1735295278398,3.52,189.94,189.85,2.6366]
[1735295278696,13.24563589,189.91,189.78,4.6086521]
[1735295278899,70.44,190.1,189.78,4.6086521]
[1735295278900,2.6348,189.98,189.89,2.6361]
[1735295279200,13.24563589,189.9,189.78,1.0886521]
[1735295279401,13.24563589,189.85,189.79,0.96890905]
[1735295279700,13.24563589,189.85,189.78,1.0886521]
[1735295280092,13.24563589,189.85,189.81,2.6372]
[1735295280298,19.21114223,189.88,189.78,1.0886521]
[1735295280893,19.21114223,189.88,189.82,2.637]
[1735295281697,19.21114223,189.94,189.86,2.6364]
[1735295282006,19.21114223,189.94,189.83,3.52]
[1735295282702,19.21114223,189.94,189.87,2.6362]
[1735295282902,19.21114223,189.94,189.82,3.52]
[1735295283299,19.21114223,189.91,189.82,3.52]
[1735295284006,19.21114223,189.91,189.78,1.0886521]
[1735295284206,19.21114223,189.91,189.79,0.96897309]
[1735295284602,21.84694223,189.91,189.83,2.6369]
[1735295284810,19.21114223,189.91,189.78,2.7505521]
[1735295285009,19.21114223,189.91,189.79,0.96897524]
[1735295285410,19.21114223,189.91,189.83,2.6368]
[1735295285710,19.21114223,189.91,189.78,2.7505521]
[1735295285912,19.21114223,189.91,189.79,0.96896716]
[1735295286412,19.21114223,189.91,189.84,2.6368]
[1735295286913,19.21114223,189.91,189.78,2.7505521]
[1735295287112,19.21114223,189.88,189.79,0.96897424]
[1735295288511,19.21114223,189.88,189.8,2.6373]
[1735295289211,21.84744223,189.88,189.8,2.6373]
[1735295289412,19.21114223,189.85,189.78,1.0886521]
[1735295291008,3.52,189.87,189.78,1.0886521]
[1735295291009,19.21114223,189.82,189.78,1.0886521]
[1735295292212,21.84824223,189.82,189.78,1.0886521]
[1735295293107,19.21114223,189.82,189.78,1.0886521]
[1735295293306,19.21114223,189.85,189.78,1.0886521]
[1735295293715,2.6368,189.84,189.78,3.7262521]
[1735295294111,19.21114223,189.85,189.78,1.0886521]
[1735295294416,2.637,189.83,189.78,1.0886521]
[1735295294616,19.21114223,189.85,189.78,1.0886521]
[1735295295514,2.6368,189.84,189.79,2.6374]
[1735295295915,19.21114223,189.85,189.79,2.6374]
[1735295296112,19.21114223,189.85,189.78,1.0886521]
[1735295296307,19.21114223,189.85,189.8,2.6373]
[1735295297511,21.84774223,189.85,189.8,2.6373]
[1735295298117,21.84774223,189.85,189.78,1.0886521]
[1735295298309,21.84774223,189.85,189.78,3.7261521]
[1735295298508,2.6368,189.84,189.78,3.7261521]
[1735295299218,3.58,189.88,189.78,3.7261521]
[1735295299219,19.21114223,189.82,189.78,1.0886521]
[1735295299415,19.21114223,189.79,189.78,1.0886521]
[1735295299718,2.6376,189.78,189.7,2.6386]
[1735295299917,2.6376,189.78,189.67,3.58]
[1735295300219,12.01823654,189.77,189.74,2.6381]
[1735295300619,12.01823654,189.77,189.67,3.58]
[1735295301619,12.01823654,189.77,189.68,4.31740934]
[1735295301915,12.01823654,189.77,189.68,3.3478]
[1735295302117,12.01823654,189.77,189.71,2.6385]
[1735295302517,12.01823654,189.77,189.68,3.3478]
[1735295302918,2.6379,189.76,189.7,2.6387]
[1735295303319,12.01823654,189.77,189.7,2.6387]
[1735295303515,14.65613654,189.77,189.7,2.6387]
[1735295303712,12.01823654,189.77,189.7,2.6387]
[1735295304220,12.01823654,189.74,189.7,2.6387]
[1735295305317,14.65613654,189.77,189.71,2.6385]
[1735295305913,14.65613654,189.77,189.69,2.6388]
[1735295306115,14.65613654,189.77,189.68,1.6819]
[1735295306621,12.01823654,189.8,189.68,1.6819]
[1735295307018,14.65573654,189.8,189.69,0.96956016]
[1735295307621,14.65573654,189.8,189.68,1.6819]
[1735295307822,14.65573654,189.8,189.73,2.6382]
[1735295308718,2.6375,189.79,189.73,2.6382]
[1735295308923,12.01823654,189.8,189.71,6.2186]
[1735295309124,12.01823654,189.77,189.71,6.2186]
[1735295309325,3.58,189.84,189.71,6.2186]
[1735295309628,12.01823654,189.78,189.71,6.2186]
[1735295309926,2.6378,189.77,189.71,2.6386]
[1735295310120,12.01823654,189.78,189.71,2.6385]
[1735295310521,3.58,189.84,189.68,5.2619]
[1735295310522,14.65643654,189.75,189.68,5.2619]
[1735295310720,12.01823654,189.72,189.59,12.01823654]
[1735295310922,12.01823654,189.72,189.6,4.54978893]
[1735295311228,12.01823654,189.72,189.66,2.6391]
[1735295311428,12.01823654,189.72,189.6,3.58]
[1735295311626,2.6389,189.7,189.63,2.6396]
[1735295311828,12.01823654,189.69,189.63,2.6396]
[1735295312121,12.01823654,189.69,189.59,12.01823654]
[1735295312323,12.01823654,189.69,189.59,3.58]
[1735295313126,12.01823654,189.69,189.62,2.6397]
[1735295314328,14.65713654,189.69,189.62,2.6397]
[1735295314530,12.01823654,189.69,189.62,2.6397]
[1735295314723,12.01823654,189.71,189.65,2.6393]
[1735295314932,12.01823654,189.68,189.61,3.58]
[1735295315234,12.01823654,189.68,189.63,2.6396]
[1735295315931,12.01823654,189.68,189.62,2.6398]
[1735295316127,12.01823654,189.68,189.61,3.58]
[1735295316933,14.65723654,189.68,189.57,8.3911]
[1735295318026,12.01823654,189.68,189.63,2.6397]
[1735295318232,3.58,189.73,189.51,3.58]
[1735295318233,12.01823654,189.65,189.51,3.58]
[1735295318421,2.6397,189.63,189.56,2.6407]
[1735295318619,2.6397,189.63,189.51,3.58]
[1735295318620,12.01823654,189.65,189.51,3.58]
[1735295318829,12.01823654,189.65,189.52,0.970199]
[1735295319031,14.65763654,189.65,189.58,2.6403]
[1735295319226,12.01823654,189.65,189.5,12.01823654]
[1735295319434,12.01823654,189.65,189.51,3.58]
[1735295319627,12.01823654,189.65,189.54,2.6409]
[1735295319628,2.6397,189.63,189.54,2.6409]
[1735295319934,12.01823654,189.62,189.54,3.58]
[1735295320437,12.01823654,189.62,189.58,2.6404]
[1735295320636,3.58,189.67,189.58,2.6404]
[1735295320834,14.65783654,189.64,189.58,2.6404]
[1735295321336,12.01823654,189.64,189.58,2.6404]
[1735295321731,12.01823654,189.67,189.6,2.6401]
[1735295322135,14.65753654,189.67,189.6,2.6401]
[1735295322832,2.6393,189.66,189.6,2.6401]
[1735295323342,12.01823654,189.67,189.6,2.6401]
[1735295323536,12.01823654,189.61,189.4,21.60654389]
[1735295323842,12.01823654,189.52,189.4,21.60654389]
[1735295324142,14.65963654,189.52,189.43,2.6424]
[1735295324344,12.01823654,189.52,189.41,4.8008]
[1735295324638,14.65933654,189.53,189.46,2.6419]
[1735295324841,14.65933654,189.53,189.41,16.82913654]
[1735295325243,14.65933654,189.53,189.41,4.8109]
[1735295325445,12.01823654,189.5,189.44,2.6422]
[1735295325744,12.01823654,189.5,189.41,4.8109]
[1735295325940,12.01823654,189.47,189.41,2.6427]
[1735295326238,19.29624872,189.47,189.36,3.82]
[1735295326443,19.29624872,189.47,189.37,1.5539]
[1735295326940,44.05916596,189.69,189.38,3.1819]
[1735295327146,19.29624872,189.55,189.39,19.29624872]
[1735295327345,19.29624872,189.58,189.42,19.29624872]
[1735295327539,19.29624872,189.61,189.45,19.29624872]
[1735295327743,19.29624872,189.61,189.46,3.1568]
[1735295328241,19.29624872,189.61,189.47,2.51448061]
[1735295328444,19.29624872,189.61,189.48,0.97054365]
[1735295328644,19.29624872,189.61,189.49,3.82]
[1735295329143,19.29624872,189.61,189.5,0.97042561]
[1735295329446,19.29624872,189.64,189.5,0.97042561]
[1735295330042,19.29624872,189.67,189.51,19.29624872]
[1735295330343,19.29624872,189.67,189.5,0.97042561]
[1735295330344,19.29624872,189.7,189.54,19.29624872]
[1735295330549,19.29624872,189.73,189.67,2.6391]
[1735295330737,19.29624872,189.73,189.64,3.82]
[1735295331850,19.29624872,189.73,189.68,2.6389]
[1735295332344,19.29624872,189.73,189.64,3.82]
[1735295332345,19.29624872,189.76,189.64,3.82]
[1735295332542,19.29624872,189.76,189.7,2.6387]
[1735295332743,19.29624872,189.76,189.7,3.82]
[1735295332948,19.29624872,189.76,189.72,2.6384]
[1735295333142,19.29624872,189.76,189.7,3.82]
[1735295333740,19.29624872,189.76,189.66,3.82]
[1735295334143,19.29624872,189.76,189.68,2.639]
[1735295334356,20.76531872,189.79,189.66,3.82]
[1735295334546,20.76531872,189.79,189.67,1.561]
[1735295335549,23.40281872,189.79,189.69,2.6388]
[1735295335949,20.76531872,189.79,189.69,2.6388]
[1735295336148,20.76531872,189.79,189.67,1.561]
[1735295336149,1.46907,189.79,189.67,1.561]
[1735295336747,1.46907,189.79,189.74,2.6381]
[1735295337348,1.46907,189.79,189.75,2.638]
[1735295338349,1.46907,189.79,189.73,6.4582]
[1735295338846,1.46907,189.79,189.73,3.82]
[1735295339040,1.46907,189.79,189.74,2.6381]
[1735295339948,1.46907,189.79,189.73,3.82]
[1735295340752,4.10657,189.79,189.7,2.6387]
[1735295341048,1.46907,189.79,189.7,3.82]
[1735295341455,1.46907,189.79,189.74,2.6381]
[1735295341862,1.46907,189.79,189.7,3.82]
[1735295342055,1.46907,189.79,189.73,2.6383]
[1735295342255,1.46907,189.79,189.7,3.82]
[1735295344459,1.46907,189.79,189.76,2.6378]
[1735295348254,1.46907,189.79,189.7,3.82]
[1735295348455,1.46907,189.79,189.71,19.29624872]
[1735295348651,1.46907,189.79,189.78,2.6376]
[1735295348856,1.46907,189.79,189.78,6.4576]
[1735295349654,2.636,189.9,189.81,2.6371]
[1735295349860,19.29624872,189.91,189.81,2.6371]
[1735295350162,2.6362,189.89,189.81,2.6371]
[1735295350362,2.6362,189.89,189.82,2.637]
[1735295350760,19.29624872,189.91,189.79,3.2291]
[1735295350952,2.6362,189.89,189.81,2.6371]
[1735295352558,2.6362,189.88,189.81,2.6371]
[1735295352758,19.29624872,189.87,189.74,3.8]
[1735295354167,19.29624872,189.9,189.74,3.8]
[1735295354354,19.29624872,189.9,189.74,23.09624872]
[1735295354760,19.29624872,189.9,189.75,1.6557]
[1735295354963,2.6362,189.89,189.82,2.637]
[1735295355857,19.29624872,189.92,189.8,3.84]
[1735295356063,19.29624872,189.95,189.8,3.84]
[1735295356363,1.4819,189.96,189.81,3.1216]
[1735295356364,11.9990863,189.93,189.81,3.1216]
[1735295356867,11.9990863,189.93,189.86,2.6365]
[1735295356868,2.6357,189.92,189.86,2.6365]
[1735295357054,11.9990863,189.93,189.86,2.6365]
[1735295358255,11.9990863,189.96,189.89,2.6361]
[1735295358460,11.9990863,189.96,189.89,6.4761]
[1735295358658,11.9990863,189.9,189.81,3.1216]
[1735295358860,11.9990863,189.9,189.82,2.637]
[1735295359260,3.84,189.98,189.81,3.1216]
[1735295359462,11.9990863,189.9,189.84,2.6368]
[1735295359670,11.9990863,189.87,189.81,3.1216]
[1735295359865,11.9990863,189.87,189.81,6.9616]
[1735295360161,11.9990863,189.87,189.81,5.4129]
[1735295360366,11.9990863,189.9,189.81,5.4129]
[1735295360770,3.84,189.98,189.81,5.4129]
[1735295360966,11.9990863,189.91,189.84,2.6368]
[1735295361973,14.6349863,189.91,189.84,2.6368]
[1735295362266,11.9990863,189.88,189.81,5.4129]
[1735295363272,14.6353863,189.88,189.81,8.05]
[1735295363571,14.6353863,189.88,189.81,5.4129]
[1735295363872,11.9990863,189.88,189.82,2.637]
[1735295364064,11.9990863,189.88,189.78,1.5812]
[1735295364472,2.6365,189.86,189.79,2.6375]
[1735295365275,2.6365,189.86,189.78,1.5812]
[1735295365276,14.6354863,189.88,189.81,2.6371]
[1735295367189,14.6354863,189.88,189.82,2.637]
[1735295368282,11.9990863,189.88,189.78,3.2296]
[1735295368494,2.6364,189.87,189.78,3.2296]
[1735295368786,11.9990863,189.88,189.78,3.2296]
[1735295369187,1.4828,189.91,189.78,3.2296]
[1735295369482,28.29916596,189.99,189.83,11.9990863]
[1735295369686,11.9990863,189.96,189.84,3.84]
[1735295370077,11.9990863,189.96,189.85,1.5925]
[1735295370483,11.9990863,189.96,189.86,3.2148]
[1735295370786,40.29825226,189.99,189.86,15.2138863]
[1735295371089,11.9990863,189.93,189.86,3.2148]
[1735295371388,40.29825226,189.99,189.8,3.82]
[1735295371389,11.9990863,189.9,189.8,3.82]
[1735295371985,11.9990863,189.9,189.81,3.3522]
[1735295372393,11.9990863,189.93,189.81,3.3522]
[1735295372691,14.6347863,189.93,189.85,2.6366]
[1735295372887,11.9990863,189.93,189.85,2.6366]
[1735295373586,2.6358,189.91,189.84,2.6368]
[1735295373786,3.82,189.96,189.81,3.3522]
[1735295373987,11.9990863,189.94,189.81,3.3522]
[1735295374190,11.9990863,189.94,189.88,2.6362]
[1735295374394,11.9990863,189.94,189.85,3.82]
[1735295374688,11.9990863,189.94,189.87,2.6363]
[1735295374885,11.9990863,189.94,189.85,3.82]
[1735295375094,11.9990863,189.97,189.9,2.6358]
[1735295375287,11.9990863,189.97,189.85,3.82]
[1735295375690,11.9990863,189.97,189.91,2.6358]
[1735295377194,11.9990863,189.97,189.86,13.6136863]
[1735295377195,2.6351,189.96,189.89,2.636]
[1735295377394,11.9990863,189.97,189.86,1.6146]
[1735295377783,2.6354,189.95,189.88,2.6361]
[1735295377986,11.9990863,189.94,189.85,3.82]
[1735295379295,11.9990863,189.94,189.86,3.82]
[1735295379492,2.6355,189.93,189.87,2.6363]
[1735295380693,11.9990863,189.94,189.87,2.6363]
[1735295380893,2.6354,189.94,189.87,2.6363]
[1735295381799,11.9990863,189.97,189.86,3.82]
[1735295382000,2.6352,189.96,189.89,2.636]
[1735295382795,2.6352,189.96,189.9,2.6359]
[1735295383196,11.9990863,189.97,189.9,2.6359]
[1735295383400,11.9990863,189.97,189.89,2.636]
[1735295383596,11.9990863,189.97,189.86,3.82]
[1735295384100,14.6340863,189.97,189.9,2.6358]
[1735295384308,14.6340863,189.97,189.86,15.8190863]
[1735295384309,11.9990863,190.0,189.86,15.8190863]
[1735295384896,2.635,189.98,189.91,2.6357]
[1735295385199,11.9990863,189.97,189.86,15.8190863]
[1735295385403,2.6352,189.96,189.89,2.636]
[1735295385594,2.6352,189.96,189.86,15.8190863]
[1735295385999,2.6352,189.96,189.9,2.6359]
[1735295386202,14.6340863,189.97,189.9,2.6359]
[1735295387003,14.6340863,189.97,189.91,2.6358]
[1735295387298,14.6340863,189.97,189.86,15.8190863]
[1735295387608,2.635,189.97,189.86,15.8190863]
[1735295388199,2.635,189.97,189.89,2.636]
[1735295388405,2.635,189.97,189.86,15.8190863]
[1735295389308,2.6349,189.98,189.92,2.6356]
[1735295392808,2.6349,189.98,189.92,6.3156]
[1735295393399,11.9990863,190.03,189.92,3.68]
[1735295393600,2.6345,190.01,189.95,2.6352]
[1735295394004,2.6345,190.01,189.95,2.6351]
[1735295394209,2.6345,190.01,189.92,3.68]
[1735295395007,2.6345,190.01,189.95,2.6352]
[1735295395201,2.6348,189.99,189.92,3.68]
[1735295395805,2.6346,190.0,189.92,3.68]
[1735295397414,2.6346,190.0,189.94,2.6353]
[1735295398605,2.6348,189.99,189.93,2.6354]
[1735295399506,2.6344,190.02,189.96,2.6351]
[1735295400113,2.6342,190.03,189.97,2.6349]
[1735295400505,11.9990863,190.05,189.95,3.68]
[1735295401015,2.6343,190.02,189.95,3.68]
[1735295401216,5.1616,190.09,189.95,3.68]
[1735295401417,1.4816,190.09,189.95,3.68]
[1735295401708,11.9990863,190.06,189.95,3.68]
[1735295402119,1.4816,190.09,189.95,3.68]
[1735295402316,11.9990863,190.06,189.95,3.68]
[1735295402512,11.9990863,190.06,189.92,11.9990863]
[1735295402713,11.9990863,190.02,189.93,3.68]
[1735295403213,11.9990863,190.02,189.94,2.6354]
[1735295403214,2.6347,190.0,189.94,2.6354]
[1735295404715,11.9990863,190.02,189.93,3.68]
[1735295404916,11.9990863,190.05,189.93,3.68]
[1735295405111,8.61838876,190.09,189.93,3.68]
[1735295405318,2.6341,190.04,189.93,3.68]
[1735295405920,2.6341,190.04,189.97,2.6349]
[1735295406610,2.6341,190.04,189.98,2.6348]
[1735295406816,2.6337,190.06,189.96,11.9990863]
[1735295407015,1.4816,190.09,189.96,11.9990863]
[1735295407219,7.13678876,190.13,189.93,3.68]
[1735295407220,7.13678876,190.13,190.03,11.9990863]
[1735295407415,9.76958876,190.13,190.04,6.9304]
[1735295407719,7.13678876,190.13,190.07,2.6335]
[1735295407920,7.13678876,190.13,190.04,6.9304]
[1735295408116,7.13678876,190.13,190.06,11.9990863]
[1735295408320,96.34237019,190.16,190.06,11.9990863]
[1735295408321,11.9990863,190.16,190.06,11.9990863]
[1735295408716,2.6322,190.18,190.06,11.9990863]
[1735295409415,2.6322,190.18,190.11,2.633]
[1735295409623,11.9990863,190.19,190.11,2.633]
[1735295409624,11.9990863,190.19,190.11,3.68]
[1735295410416,7.13678876,190.27,190.11,3.68]
[1735295410618,11.9990863,190.24,190.12,11.9990863]
[1735295411221,11.9990863,190.24,190.13,3.2915]
[1735295411726,11.9990863,190.27,190.15,11.9990863]
[1735295412124,2.6307,190.29,190.21,2.6316]
[1735295412329,19.13587506,190.34,190.22,3.68]
[1735295412624,11.9990863,190.31,190.22,6.9715]
[1735295412823,7.13678876,190.34,190.22,3.68]
[1735295413023,11.9990863,190.27,190.22,3.68]
[1735295413821,11.9990863,190.27,190.18,3.54]
[1735295414021,11.9990863,190.24,190.18,3.54]
[1735295414220,11.9990863,190.27,190.18,3.54]
[1735295415130,2.631,190.26,190.18,3.54]
[1735295416331,2.631,190.26,190.18,6.1721]
[1735295416927,1.4755,190.29,190.21,2.6316]
[1735295417228,11.9990863,190.33,190.21,11.9990863]
[1735295417619,11.9990863,190.33,190.25,2.6311]
[1735295417821,11.9990863,190.37,190.24,15.5390863]
[1735295418124,11.9990863,190.37,190.3,2.6304]
[1735295418331,2.6292,190.39,190.27,11.9990863]
[1735295418829,2.6296,190.36,190.28,1.5998]
[1735295419031,11.9990863,190.37,190.28,1.5998]
[1735295419224,11.9990863,190.37,190.24,11.9990863]
[1735295419424,2.6301,190.32,190.25,6.1711]
[1735295419622,11.9990863,190.3,190.2,1.5998]
[1735295419824,11.9990863,190.3,190.2,5.1398]
[1735295420026,11.9990863,190.3,190.2,3.54]
[1735295420224,11.9990863,190.27,190.14,11.9990863]
[1735295420430,14.6299863,190.27,190.17,2.6322]
[1735295420727,11.9990863,190.27,190.15,3.54]
[1735295421724,2.6312,190.25,190.17,2.6322]
[1735295421924,11.9990863,190.27,190.15,3.54]
[1735295422125,21.2559092,190.29,190.15,3.54]
[1735295423031,2.631,190.27,190.15,3.54]
[1735295423826,22.7314092,190.32,190.16,21.2559092]
[1735295424024,22.7314092,190.32,190.17,1.6576]
[1735295424824,2.6312,190.25,190.15,3.54]
[1735295425027,21.2559092,190.29,190.15,3.54]
[1735295425225,22.7314092,190.32,190.15,3.54]
[1735295425524,22.7314092,190.32,190.21,2.6316]
[1735295426122,2.6307,190.28,190.21,2.6316]
[1735295426324,22.7314092,190.32,190.23,2.6314]
[1735295426534,22.7314092,190.32,190.16,21.2559092]
[1735295426721,2.6305,190.3,190.16,21.2559092]
[1735295426927,21.2559092,190.35,190.16,21.2559092]
[1735295427432,3.54,190.34,190.16,21.2559092]
[1735295428433,2.6306,190.29,190.23,2.6313]
[1735295430631,21.2559092,190.32,190.21,3.54]
[1735295430832,21.2559092,190.29,190.11,1.6661]
[1735295431032,21.2559092,190.26,190.11,1.6661]
[1735295431235,21.2559092,190.23,190.11,5.2061]
[1735295431437,21.2559092,190.23,190.11,3.54]
[1735295431630,21.2559092,190.2,190.04,22.8767092]
[1735295431831,21.2559092,190.2,190.05,3.54]
[1735295432828,21.2559092,190.17,190.04,1.6007]
[1735295433033,5.0141,190.22,190.04,1.6007]
[1735295433034,21.2559092,190.14,190.04,1.6007]
[1735295434542,2.6331,190.11,190.05,2.6338]
[1735295435441,2.6329,190.12,190.05,2.6338]
[1735295435649,21.2559092,190.14,189.98,21.2559092]
[1735295435840,1.475,190.13,189.99,3.54]
[1735295436044,2.6336,190.07,189.97,3.2229]
[1735295436343,2.6336,190.07,190.01,2.6344]
[1735295436843,2.6336,190.07,189.97,6.7629]
[1735295437242,3.54,190.1,189.97,7.7771]
[1735295437243,2.6339,190.05,189.97,7.7771]
[1735295437541,3.54,190.1,189.97,7.7771]
[1735295437846,21.2559092,190.08,189.95,2.6351]
[1735295438039,21.2559092,190.05,189.95,2.6351]
[1735295438438,2.6341,190.04,189.97,2.635]
[1735295438636,21.2559092,190.08,189.94,3.54]
[1735295439142,3.54,190.1,189.95,21.2559092]
[1735295439445,21.2559092,190.11,189.95,21.2559092]
[1735295440641,2.6337,190.07,190.0,2.6346]
[1735295441146,1.475,190.13,190.01,3.54]
[1735295441341,3.54,190.15,190.02,3.54]
[1735295441639,21.2559092,190.3,190.02,6.7183]
[1735295441640,22.7330092,190.2,190.02,6.7183]
[1735295441844,22.7330092,190.2,190.04,21.2559092]
[1735295442339,2.6319,190.19,190.12,2.6328]
[1735295442538,22.7330092,190.2,190.08,3.54]
[1735295442737,1.4771,190.2,190.15,2.6325]
[1735295443737,1.4771,190.2,190.13,2.6326]
[1735295443938,1.4771,190.2,190.08,3.54]
[1735295444147,2.6321,190.18,190.13,2.6327]
[1735295445247,2.6321,190.18,190.12,2.6329]
[1735295445444,2.6322,190.17,190.08,3.54]
[1735295445643,22.7330092,190.2,190.08,3.54]
[1735295445843,22.7330092,190.2,190.08,2.6333]
[1735295446148,22.7330092,190.2,190.04,3.52]
[1735295446340,2.6325,190.15,190.04,3.52]
[1735295447045,3.52,190.18,190.04,3.52]
[1735295447346,3.52,190.18,190.03,5.1752]
[1735295447347,21.2559092,190.17,190.03,5.1752]
[1735295448137,2.6328,190.13,190.06,2.6337]
[1735295448340,21.2559092,190.17,190.06,2.6337]
[1735295448745,3.52,190.16,190.06,2.6337]
[1735295449448,2.633,190.12,190.06,2.6337]
[1735295449749,21.2559092,190.14,190.05,2.6339]
[1735295450237,6.1524,190.16,190.1,2.6332]